{"text_format":"1","workbook":"xlsx","n_sheets":2,"sheets":["Feuil1","Référentiel"],"not_rendered":{"charts":0,"images":6,"macros":1,"external_links":0,"defined_names":108,"comments":0,"pivot_tables":0},"unopened":[],"bounds":{"document_bytes":16777216,"sheet_cells":100000,"rows_first":2000,"rows_last":500,"rows_between":2000,"halvings":0,"cell_chars":16384,"cell_head_chars":4096},"cells_cut":0,"cells_raw":0,"read":"whole","date_system":"1900"}

{"sheet":"Feuil1","index":0,"n_rows":37,"n_cols":18,"rows_kept":37,"cut":false,"hidden":false,"merged":[[2,4,2,5]]}
[null,null,"Fiche évaluation DNB",null,null,"APSA:","Course d'orientation"]
[null,null,"Classe/Groupe",null,null,"Professeur:",null,null,null,null,null,null,null,null,null,null,null,"C:\\Users\\GERARD HOLDER EPS\\Documents\\fiches compatibles pack EPS\\Nouveau dossier\\macros2"]
[null,null,null,null,null,null,null,null,null,null,null,null,null,null,null,null,null,"C:\\Users\\GERARD HOLDER EPS\\Documents\\fiches compatibles pack EPS\\Nouveau dossier\\macros2\\Fiche évaluation DNB Course d'orientation  .pdf"]
[null,"Nom- Prénom","Sexe","Classe","Note","Pertinence et efficacité du projet, indicateurs complémentaires d’efficacité /8 points","Efficacité du coureur/8 points","Gestion de sa sécurité et gestion du temps /4 points",null,null,"Projet formel",null,null,"Le coureur utilise les lignes directrices simples",null,null,"Sécurité respectée"]
[1,null,null,null,{"$f":"IF(F5=\"\",\"\",F5+G5+H5)","v":""},null,null,null,null,null,0,null,null,0,null,null,0]
[2,null,null,null,{"$f":"IF(F6=\"\",\"\",F6+G6+H6)","v":""},null,null,null,null,null,0.5,null,null,0.5,null,null,0.5]
[3,null,null,null,"",null,null,null,null,null,1,null,null,1,null,null,1]
[4,null,null,null,"",null,null,null,null,null,1.5,null,null,1.5,null,null,1.5]
[5,null,null,null,"",null,null,null,null,null,2,null,null,2,null,null,"Sécuritée respectée et assurée"]
[6,null,null,null,"",null,null,null,null,null,2.5,null,null,2.5,null,null,2]
[7,null,null,null,"",null,null,null,null,null,3,null,null,3,null,null,2.5]
[8,null,null,null,"",null,null,null,null,null,3.5,null,null,3.5,null,null,3]
[9,null,null,null,"",null,null,null,null,null,4,null,null,4,null,null,"Sécurité optimale"]
[10,null,null,null,"",null,null,null,null,null,"Projet réfléchi",null,null,"Le coureur s'oriente en se déplaçant",null,null,3.5]
[11,null,null,null,"",null,null,null,null,null,4.5,null,null,4.5,null,null,4]
[12,null,null,null,"",null,null,null,null,null,5,null,null,5]
[13,null,null,null,"",null,null,null,null,null,5.5,null,null,5.5]
[14,null,null,null,"",null,null,null,null,null,6,null,null,6]
[15,null,null,null,"",null,null,null,null,null,"Projet réalisé",null,null,"Le coureur anticipe son déplacement"]
[16,null,null,null,"",null,null,null,null,null,6.5,null,null,6.5]
[17,null,null,null,"",null,null,null,null,null,7,null,null,7]
[18,null,null,null,"",null,null,null,null,null,7.5,null,null,7.5]
[19,null,null,null,"",null,null,null,null,null,8,null,null,8]
[20,null,null,null,""]
[21,null,null,null,""]
[22,null,null,null,""]
[23,null,null,null,""]
[24,null,null,null,""]
[25,null,null,null,""]
[26,null,null,null,""]
[27,null,null,null,""]
[28,null,null,null,""]
[29,null,null,null,""]
[30,null,null,null,""]
[null,null,null,"Moyenne générale",{"$f":"IF($E$5=\"\",\"\",AVERAGE($E$5:$E$34))","v":""}]
[null,null,null,"Moyenne filles",{"$f":"IF($E$5=\"\",\"\",IF($C$5=\"\",\"\",AVERAGEIF($C$5:$C$34,\"F\",$E$5:$E$34)))","v":""}]
[null,null,null,"Moyenne garçons",{"$f":"IF($E$5=\"\",\"\",IF($C$5=\"\",\"\",AVERAGEIF($C$5:$C$34,\"G\",$E$5:$E$34)))","v":""}]

{"sheet":"Référentiel","index":1,"n_rows":0,"n_cols":0,"rows_kept":0,"cut":false,"hidden":false,"merged":[]}